bitfinex-derivatives/quotes_BNBF0:USTF0_20250709
["timestamp","ask_amount","ask_price","bid_price","bid_amount"]
[1752102610233,3.35448843,669.65,668.88,2.018]
[1752102611829,3.35448843,669.66,668.88,2.018]
[1752102612233,3.35448843,669.67,668.88,2.018]
[1752102612433,3.35448843,669.66,668.88,2.018]
[1752102613331,3.35448843,669.65,668.88,2.018]
[1752102614436,3.35448843,669.66,668.88,2.018]
[1752102614738,3.35448843,669.65,668.88,2.018]
[1752102615336,3.35448843,669.66,668.88,2.018]
[1752102616734,0.25992553,669.72,668.88,2.018]
[1752102616735,3.35448843,669.69,668.88,2.018]
[1752102617038,0.25992553,669.72,668.88,2.018]
[1752102624542,3.35448843,669.71,668.88,2.018]
[1752102624742,3.35448843,669.68,668.88,2.018]
[1752102626245,3.35448843,669.67,668.88,2.018]
[1752102626946,3.35448843,669.62,668.88,2.018]
[1752102627344,3.35448843,669.61,668.88,2.018]
[1752102628248,3.35448843,669.6,668.88,2.018]
[1752102628449,3.35448843,669.55,668.88,2.018]
[1752102629249,3.35448843,669.54,668.88,2.018]
[1752102630248,3.35448843,669.53,668.88,2.018]
[1752102631346,3.35448843,669.52,668.88,2.018]
[1752102631851,3.35448843,669.55,668.88,2.018]
[1752102632051,3.35448843,669.57,668.88,2.018]
[1752102632351,3.35448843,669.56,668.88,2.018]
[1752102633351,3.35448843,669.55,668.88,2.018]
[1752102633651,3.35448843,669.54,668.88,2.018]
[1752102634654,3.35448843,669.53,668.88,2.018]
[1752102635252,3.35448843,669.51,668.88,2.018]
[1752102636249,3.35448843,669.49,668.88,2.018]
[1752102637249,3.35448843,669.48,668.88,2.018]
[1752102638252,3.35448843,669.46,668.88,2.018]
[1752102639353,3.35448843,669.44,668.88,2.018]
[1752102640050,0.25992553,669.72,668.88,2.018]
[1752102641451,3.35448843,669.69,668.88,2.018]
[1752102642256,3.35448843,669.67,668.88,2.018]
[1752102642656,3.35448843,669.66,668.88,2.018]
[1752102642854,3.35448843,669.55,668.88,2.018]
[1752102643157,3.35448843,669.55,668.69,0.26005762]
[1752102643457,3.35448843,669.55,668.7,1.5267668]
[1752102643755,3.35448843,669.55,668.71,1.5267668]
[1752102643956,3.35448843,669.55,668.72,1.5267668]
[1752102644157,3.35448843,669.47,668.73,1.5267668]
[1752102644352,3.35448843,669.47,668.74,1.5267668]
[1752102644552,0.25992553,669.72,668.69,0.26005762]
[1752102644553,3.35448843,669.44,668.69,0.26005762]
[1752102644754,3.35448843,669.4,668.7,1.52678803]
[1752102644955,3.35448843,669.4,668.71,1.52678803]
[1752102645155,3.35448843,669.4,668.72,1.52678803]
[1752102645358,3.35448843,669.4,668.73,1.52678803]
[1752102645658,3.35448843,669.4,668.69,0.26005762]
[1752102645659,3.35448843,669.4,668.74,1.52678803]
[1752102645958,3.35448843,669.4,668.75,1.52678803]
[1752102646156,3.35448843,669.4,668.69,0.26005762]
[1752102646359,3.35448843,669.4,668.7,1.5267819]
[1752102646557,3.35448843,669.4,668.71,1.5267819]
[1752102646860,3.35448843,669.4,668.72,1.5267819]
[1752102647155,3.35448843,669.4,668.73,1.5267819]
[1752102647357,3.35448843,669.4,668.74,1.5267819]
[1752102647561,3.35448843,669.4,668.75,1.5267819]
[1752102647858,3.35448843,669.4,668.71,2.258]
[1752102648058,3.35448843,669.4,668.72,1.52674728]
[1752102648259,3.35448843,669.4,668.73,1.52674728]
[1752102648458,3.35448843,669.4,668.74,1.52674728]
[1752102648661,3.35448843,669.4,668.75,1.52674728]
[1752102648962,3.35448843,669.4,668.71,2.258]
[1752102649259,3.35448843,669.4,668.72,1.52672661]
[1752102649464,3.35448843,669.4,668.73,1.52672661]
[1752102649664,3.35448843,669.37,668.74,1.52672661]
[1752102649962,3.35448843,669.33,668.71,2.258]
[1752102650160,3.35448843,669.33,668.72,1.52671941]
[1752102650364,3.35448843,669.33,668.73,1.52671941]
[1752102650561,3.35448843,669.33,668.74,1.52671941]
[1752102650765,3.35448843,669.33,668.75,1.52671941]
[1752102650963,3.35448843,669.33,668.71,2.258]
[1752102651161,3.35448843,669.33,668.72,1.52672584]
[1752102651363,3.35448843,669.33,668.73,1.52672584]
[1752102651564,3.35448843,669.33,668.74,1.52672584]
[1752102651764,3.35448843,669.33,668.75,1.52672584]
[1752102651968,3.35448843,669.32,668.71,2.258]
[1752102652268,3.35448843,669.32,668.72,1.5267588]
[1752102652567,3.35448843,669.32,668.73,1.5267588]
[1752102652767,3.35448843,669.32,668.74,1.5267588]
[1752102652967,3.35448843,669.32,668.71,2.258]
[1752102653165,3.35448843,669.32,668.72,1.52676363]
[1752102653366,3.35448843,669.32,668.73,1.52676363]
[1752102653566,3.35448843,669.32,668.71,2.258]
[1752102653567,3.35448843,669.32,668.74,1.52676363]
[1752102653766,3.35448843,669.32,668.71,2.258]
[1752102653971,3.35448843,669.31,668.72,1.52678988]
[1752102654269,3.35448843,669.31,668.73,1.52678988]
[1752102654469,3.35448843,669.29,668.74,1.52678988]
[1752102654667,3.35448843,669.3,668.71,2.258]
[1752102654867,3.35448843,669.3,668.72,1.52682239]
[1752102655070,3.35448843,669.3,668.73,1.52682239]
[1752102655270,3.35448843,669.3,668.74,1.52682239]
[1752102655567,3.35448843,669.3,668.75,1.52682239]
[1752102655767,3.35448843,669.3,668.71,2.258]
[1752102656066,3.35448843,669.3,668.72,1.52686896]
[1752102656265,3.35448843,669.31,668.73,1.52686896]
[1752102656470,3.35448843,669.31,668.74,1.52686896]
[1752102656670,3.35448843,669.27,668.75,1.52686896]
[1752102656868,3.35448843,669.27,668.71,2.258]
[1752102657073,3.35448843,669.25,668.72,1.52691747]
[1752102657269,3.35448843,669.25,668.73,1.52691747]
[1752102657469,3.35448843,669.25,668.74,1.52691747]
[1752102657667,3.35448843,669.25,668.75,1.52691747]
[1752102657872,3.35448843,669.25,668.71,2.258]
[1752102658173,3.35448843,669.25,668.72,1.52700707]
[1752102658368,3.35448843,669.25,668.73,1.52700707]
[1752102658568,3.35448843,669.25,668.74,1.52700707]
[1752102658767,3.35448843,669.25,668.75,1.52700707]
[1752102658972,3.35448843,669.25,668.76,1.52700707]
[1752102659172,3.35448843,669.25,668.71,2.258]
[1752102659372,3.35448843,669.25,668.72,1.52720436]
[1752102659569,3.35448843,669.28,668.73,1.52720436]
[1752102659768,3.35448843,669.28,668.74,1.52720436]
[1752102659969,3.35448843,669.28,668.75,1.52720436]
[1752102660169,3.35448843,669.28,668.76,1.52720436]
[1752102660369,3.35448843,669.32,668.77,1.52720436]
[1752102660670,3.35448843,669.32,668.78,1.52720436]
[1752102660970,3.35448843,669.32,668.79,1.52720436]
[1752102661270,3.35448843,669.31,668.71,2.258]
[1752102661475,3.35448843,669.31,668.72,1.52728419]
[1752102661670,3.35448843,669.31,668.73,1.52728419]
[1752102661973,3.35448843,669.31,668.74,1.52728419]
[1752102662170,3.35448843,669.31,668.75,1.52728419]
[1752102662473,3.35448843,669.31,668.76,1.52728419]
[1752102662673,3.35448843,669.31,668.77,1.52728419]
[1752102662870,3.35448843,669.31,668.78,1.52728419]
[1752102663170,3.35448843,669.31,668.79,1.52728419]
[1752102663370,3.35448843,669.31,668.71,2.258]
[1752102663569,3.35448843,669.31,668.72,1.52728815]
[1752102663773,3.35448843,669.31,668.73,1.52728815]
[1752102663974,3.35448843,669.31,668.74,1.52728815]
[1752102664175,3.35448843,669.31,668.75,1.52728815]
[1752102664375,3.35448843,669.31,668.76,1.52728815]
[1752102664576,3.35448843,669.31,668.77,1.52728815]
[1752102664775,3.35448843,669.31,668.71,2.258]
[1752102664776,3.35448843,669.31,668.78,1.52728815]
[1752102665072,3.35448843,669.31,668.79,1.52728815]
[1752102665275,3.35448843,669.31,668.71,2.258]
[1752102665475,3.35448843,669.31,668.72,1.52448452]
[1752102665775,3.35448843,669.31,668.73,1.52448452]
[1752102666074,3.35448843,669.31,668.74,1.52448452]
[1752102666272,3.35448843,669.31,668.75,1.52448452]
[1752102666475,3.35448843,669.3,668.76,1.52448452]
[1752102666775,3.35448843,669.3,668.77,1.52448452]
[1752102667072,3.35448843,669.3,668.71,2.258]
[1752102667073,3.35448843,669.3,668.78,1.52448452]
[1752102667275,3.35448843,669.3,668.79,1.52448452]
[1752102667473,3.35448843,669.3,668.71,2.258]
[1752102667679,3.35448843,669.3,668.72,1.52450655]
[1752102667875,3.35448843,669.3,668.73,1.52450655]
[1752102668071,3.35448843,669.3,668.74,1.52450655]
[1752102668276,3.35448843,669.3,668.75,1.52450655]
[1752102668471,3.35448843,669.3,668.76,1.52450655]
[1752102668675,3.35448843,669.3,668.77,1.52450655]
[1752102668873,3.35448843,669.3,668.78,1.52450655]
[1752102669174,3.35448843,669.3,668.79,1.52450655]
[1752102669373,3.35448843,669.3,668.71,2.258]
[1752102669572,3.35448843,669.3,668.72,1.52451868]
[1752102669777,3.35448843,669.3,668.73,1.52451868]
[1752102669974,3.35448843,669.3,668.74,1.52451868]
[1752102670178,3.35448843,669.25,668.75,1.52451868]
[1752102670478,3.35448843,669.25,668.76,1.52451868]
[1752102670674,3.35448843,669.25,668.77,1.52451868]
[1752102670878,3.35448843,669.25,668.78,1.52451868]
[1752102671078,3.35448843,669.25,668.79,1.52451868]
[1752102671374,3.35448843,669.25,668.71,2.258]
[1752102671676,3.35448843,669.25,668.72,1.52453254]
[1752102671873,3.35448843,669.25,668.73,1.52453254]
[1752102672076,3.35448843,669.25,668.74,1.52453254]
[1752102672276,3.35448843,669.27,668.75,1.52453254]
[1752102672477,3.35448843,669.27,668.76,1.52453254]
[1752102672677,3.35448843,669.27,668.77,1.52453254]
[1752102672879,3.35448843,669.27,668.78,1.52453254]
[1752102673079,3.35448843,669.27,668.57,1.6759159]
[1752102673279,3.35448843,669.27,668.58,3.20046806]
[1752102673478,3.35448843,669.25,668.59,1.52455216]
[1752102673679,3.35448843,669.25,668.6,1.52455216]
[1752102673879,3.35448843,669.25,668.61,1.52455216]
[1752102674078,3.35448843,669.25,668.62,1.52455216]
[1752102674276,3.35448843,669.25,668.63,1.52455216]
[1752102674481,3.35448843,669.25,668.64,1.52455216]
[1752102674781,3.35448843,669.25,668.65,1.52455216]
[1752102674976,3.35448843,669.25,668.66,1.52455216]
[1752102675184,3.35448843,669.25,668.67,1.52455216]
[1752102675385,3.35448843,669.25,668.68,1.52455216]
[1752102675585,3.35448843,669.25,668.69,1.52455216]
[1752102675782,3.35448843,669.43,668.7,1.52455216]
[1752102675981,3.35448843,669.44,668.71,1.52455216]
[1752102676282,3.35448843,669.44,668.72,1.52455216]
[1752102676583,3.35448843,669.44,668.73,1.52455216]
[1752102676885,3.35448843,669.44,668.74,1.52455216]
[1752102677082,3.35448843,669.44,668.75,1.52455216]
[1752102677286,3.35448843,669.44,668.76,1.52455216]
[1752102677487,3.35448843,669.44,668.77,1.52455216]
[1752102677685,3.35448843,669.44,668.78,1.52455216]
[1752102677885,3.35448843,669.44,668.65,1.576]
[1752102678187,3.35448843,669.44,668.66,1.52463483]
[1752102678388,3.35448843,669.44,668.67,1.52463483]
[1752102678590,3.35448843,669.44,668.68,1.52463483]
[1752102678884,3.35448843,669.5,668.69,1.52463483]
[1752102679189,3.35448843,669.5,668.7,1.52463483]
[1752102679386,3.35448843,669.5,668.71,1.52463483]
[1752102679588,3.35448843,669.5,668.72,1.52463483]
[1752102679786,3.35448843,669.5,668.73,1.52463483]
[1752102680083,3.35448843,669.5,668.74,1.52463483]
[1752102680283,3.35448843,669.5,668.75,1.52463483]
[1752102680484,3.35448843,669.5,668.76,1.52463483]
[1752102680685,3.35448843,669.5,668.77,1.52463483]
[1752102680885,3.35448843,669.5,668.78,1.52463483]
[1752102681088,3.35448843,669.5,668.65,1.576]
[1752102681291,3.35448843,669.5,668.66,1.52471666]
[1752102681491,3.35448843,669.5,668.67,1.52471666]
[1752102681691,3.35448843,669.5,668.68,1.52471666]
[1752102681988,3.35448843,669.49,668.69,1.52471666]
[1752102682192,3.35448843,669.49,668.7,1.52471666]
[1752102682389,3.35448843,669.49,668.71,1.52471666]
[1752102682593,3.35448843,669.49,668.72,1.52471666]
[1752102682793,3.35448843,669.49,668.73,1.52471666]
[1752102682991,3.35448843,669.49,668.74,1.52471666]
[1752102683289,3.35448843,669.49,668.75,1.52471666]
[1752102683491,3.35448843,669.49,668.76,1.52471666]
[1752102683693,3.35448843,669.49,668.77,1.52471666]
[1752102683892,3.35448843,669.49,668.78,1.52471666]
[1752102684090,3.35448843,669.49,668.65,1.576]
[1752102684091,3.35448843,669.54,668.65,1.576]
[1752102684295,3.35448843,669.53,668.66,1.52481555]
[1752102684594,3.35448843,669.53,668.67,1.52481555]
[1752102684791,3.35448843,669.53,668.68,1.52481555]
[1752102684994,3.35448843,669.53,668.69,1.52481555]
[1752102685193,3.35448843,669.53,668.7,1.52481555]
[1752102685397,3.35448843,669.53,668.71,1.52481555]
[1752102685594,3.35448843,669.53,668.72,1.52481555]
[1752102685795,3.35448843,669.49,668.73,1.52481555]
[1752102686095,3.35448843,669.49,668.74,1.52481555]
[1752102686296,3.35448843,669.49,668.75,1.52481555]
[1752102686494,3.35448843,669.52,668.76,1.52481555]
[1752102686695,3.35448843,669.52,668.77,1.52481555]
[1752102686895,3.35448843,669.52,668.65,1.576]
[1752102687096,3.35448843,669.52,668.66,1.52490485]
[1752102687294,3.35448843,669.52,668.67,1.52490485]
[1752102687498,3.35448843,669.52,668.68,1.52490485]
[1752102687698,3.35448843,669.52,668.69,1.52490485]
[1752102687899,3.35448843,669.61,668.7,1.52490485]
[1752102688093,3.35448843,669.64,668.71,1.52490485]
[1752102688295,3.35448843,669.64,668.72,1.52490485]
[1752102688500,3.35448843,669.64,668.73,1.52490485]
[1752102688796,3.35448843,669.64,668.74,1.52490485]
[1752102688996,3.35448843,669.64,668.75,1.52490485]
[1752102689297,3.35448843,669.64,668.76,1.52490485]
[1752102689502,3.35448843,669.64,668.65,1.576]
[1752102689798,3.35448843,669.48,668.65,1.576]
[1752102690203,3.35448843,669.47,668.65,1.576]
[1752102690403,3.35448843,669.49,668.65,1.576]
[1752102691302,3.35448843,669.5,668.65,1.576]
[1752102691501,3.35448843,669.51,668.65,1.576]
[1752102692506,3.35448843,669.52,668.65,1.576]
[1752102693306,3.35448843,669.47,668.65,1.576]
[1752102693507,3.35448843,669.48,668.65,1.576]
[1752102695405,3.35448843,669.49,668.65,1.576]
[1752102697405,3.35448843,669.5,668.65,1.576]
[1752102698111,3.35448843,669.35,668.65,1.576]
[1752102699406,3.35448843,669.34,668.65,1.576]
[1752102699610,3.35448843,669.35,668.65,1.576]
[1752102699812,3.35448843,669.34,668.65,1.576]
[1752102700008,3.35448843,669.46,668.65,1.576]
[1752102700310,3.35448843,669.32,668.65,1.576]
[1752102701413,3.35448843,669.35,668.65,1.576]
[1752102702309,3.35448843,669.38,668.65,1.576]
[1752102703608,3.35448843,669.41,668.65,1.576]
[1752102704210,3.35448843,669.38,668.65,1.576]
[1752102704409,3.35448843,669.4,668.65,1.576]
[1752102704711,3.35448843,669.39,668.65,1.576]
[1752102704915,3.35448843,669.38,668.65,1.576]
[1752102705117,3.35448843,669.35,668.65,1.576]
[1752102705314,3.35448843,669.37,668.65,1.576]
[1752102705916,3.35448843,669.35,668.65,1.576]
[1752102706117,3.35448843,669.3,668.65,1.576]
[1752102706317,3.35448843,669.17,668.65,1.576]
[1752102706613,3.35448843,669.2,668.65,1.576]
[1752102707013,3.35448843,669.21,668.65,1.576]
[1752102707415,3.35448843,669.15,668.65,1.576]
[1752102707618,3.35448843,669.22,668.65,1.576]
[1752102707917,3.35448843,669.23,668.65,1.576]
[1752102708512,3.35448843,669.31,668.65,1.576]
[1752102708813,3.35448843,669.2,668.65,1.576]
[1752102709314,3.35448843,669.21,668.65,1.576]
[1752102709513,3.35448843,669.27,668.65,1.576]
[1752102710614,3.35448843,669.28,668.65,1.576]
[1752102710818,3.35448843,669.21,668.65,1.576]
[1752102711414,3.35448843,669.23,668.65,1.576]
[1752102712013,3.35448843,669.24,668.65,1.576]
[1752102712218,3.35448843,669.23,668.65,1.576]
[1752102712515,3.35448843,669.24,668.65,1.576]
[1752102712713,3.35448843,669.25,668.65,1.576]
[1752102713119,3.35448843,669.25,668.3,0.2601626]
[1752102713321,3.35448843,669.25,668.31,1.51750615]
[1752102713519,3.35448843,669.25,668.32,1.51750615]
[1752102713816,3.35448843,669.25,668.33,1.51750615]
[1752102714020,3.35448843,669.25,668.3,0.2601626]
[1752102714314,3.35448843,669.25,668.31,1.51742523]
[1752102714516,3.35448843,669.25,668.32,1.51742523]
[1752102714715,3.35448843,669.25,668.33,1.51742523]
[1752102714915,3.35448843,669.25,668.3,0.2601626]
[1752102715119,3.35448843,669.24,668.31,1.51729963]
[1752102715317,3.35448843,669.25,668.32,1.51729963]
[1752102715520,0.25992553,669.72,668.3,0.2601626]
[1752102715521,3.35448843,669.26,668.33,1.51729963]
[1752102715717,3.35448843,669.26,668.3,0.2601626]
[1752102715916,3.35448843,669.26,668.31,1.51718817]
[1752102716120,3.35448843,669.26,668.32,1.51718817]
[1752102716319,3.35448843,669.26,668.33,1.51718817]
[1752102716621,3.35448843,669.26,668.3,0.2601626]
[1752102716916,3.35448843,669.24,668.34,2.296]
[1752102717118,3.35448843,669.25,668.34,2.296]
[1752102717519,3.35448843,669.26,668.34,2.296]
[1752102718320,3.35448843,669.27,668.34,2.296]
[1752102720922,3.35448843,669.26,668.34,2.296]
[1752102721524,3.35448843,669.27,668.34,2.296]
[1752102721728,3.35448843,669.26,668.34,2.296]
[1752102722027,0.25992553,669.72,668.34,2.296]
[1752102722028,3.35448843,669.27,668.34,2.296]
[1752102722527,3.35448843,669.26,668.34,2.296]
[1752102724426,3.35448843,669.25,668.34,2.296]
[1752102726525,3.35448843,669.24,668.34,2.296]
[1752102726730,3.35448843,669.23,668.34,2.296]
[1752102726930,3.35448843,669.22,668.34,2.296]
[1752102727431,3.35448843,669.2,668.34,2.296]
[1752102727731,3.35448843,669.23,668.34,2.296]
[1752102728030,3.35448843,669.21,668.34,2.296]
[1752102730237,3.35448843,669.23,668.34,2.296]
[1752102730439,3.35448843,669.22,668.34,2.296]
[1752102730937,3.35448843,669.25,668.34,2.296]
[1752102731440,3.35448843,669.24,668.34,2.296]
[1752102732443,3.35448843,669.23,668.34,2.296]
[1752102733044,3.35448843,669.24,668.34,2.296]
[1752102733443,3.35448843,669.25,668.34,2.296]
[1752102734542,3.35448843,669.24,668.34,2.296]
[1752102734740,3.35448843,669.25,668.34,2.296]
[1752102735445,3.35448843,669.24,668.34,2.296]
[1752102736440,0.25992553,669.72,668.34,2.296]
[1752102736441,3.35448843,669.23,668.34,2.296]
[1752102736941,3.35448843,669.22,668.34,2.296]
[1752102737542,3.35448843,669.21,668.34,2.296]
[1752102738543,3.35448843,669.2,668.34,2.296]
[1752102739542,3.35448843,669.19,668.34,2.296]
[1752102740343,3.35448843,669.18,668.34,2.296]
[1752102740541,3.35448843,669.17,668.34,2.296]
[1752102740946,3.35448843,669.15,668.34,2.296]
[1752102741341,3.35448843,669.14,668.34,2.296]
[1752102741542,3.35448843,669.14,668.35,1.51764448]
[1752102741747,3.35448843,669.16,668.34,2.296]
[1752102741948,3.35448843,669.16,668.35,1.51764465]
[1752102742147,3.35448843,669.16,668.34,2.296]
[1752102742446,3.35448843,669.15,668.35,1.51764465]
[1752102742644,3.35448843,669.16,668.34,2.296]
[1752102742842,3.35448843,669.19,668.35,1.51799976]
[1752102743048,3.35448843,669.17,668.34,2.296]
[1752102743245,3.35448843,669.17,668.35,1.51799976]
[1752102743443,3.35448843,669.18,668.34,2.296]
[1752102743648,3.35448843,669.17,668.35,1.51838177]
[1752102743842,3.35448843,669.15,668.34,2.296]
[1752102744044,3.35448843,669.15,668.35,1.51838177]
[1752102744243,3.35448843,669.15,668.34,2.296]
[1752102744547,3.35448843,669.14,668.35,1.51880277]
[1752102744748,3.35448843,669.11,668.34,2.296]
[1752102744942,3.35448843,669.12,668.35,1.51880269]
[1752102745143,3.35448843,669.11,668.34,2.296]
[1752102745350,3.35448843,669.11,668.35,1.51880269]
[1752102745648,3.35448843,669.09,668.36,1.51880269]
[1752102745948,3.35448843,669.08,668.34,2.296]
[1752102746244,3.35448843,669.08,668.35,1.51926953]
[1752102746443,3.35448843,669.13,668.36,1.51926953]
[1752102746643,3.35448843,669.17,668.34,2.296]
[1752102746848,3.35448843,669.2,668.35,1.51979179]
[1752102747044,3.35448843,669.23,668.36,1.51979179]
[1752102747345,3.35448843,669.23,668.34,2.296]
[1752102747545,3.35448843,669.21,668.35,1.52038367]
[1752102747745,3.35448843,669.21,668.36,1.52038367]
[1752102748047,3.35448843,669.18,668.37,1.52038367]
[1752102748244,3.35448843,669.14,668.3,0.2601626]
[1752102748448,0.25992553,669.72,668.31,1.52092853]
[1752102748449,3.35448843,669.09,668.31,1.52092853]
[1752102748748,0.25992553,669.72,668.32,1.52092853]
[1752102748749,3.35448843,669.01,668.32,1.52092853]
[1752102748945,3.35448843,669.01,668.33,1.52092853]
[1752102749148,3.35448843,669.01,668.3,0.2601626]
[1752102749349,3.35448843,669.01,668.31,1.52097361]
[1752102749648,3.35448843,669.01,668.32,1.52097361]
[1752102749848,3.35448843,669.01,668.33,1.52097361]
[1752102750050,3.35448843,669.01,668.34,1.52097361]
[1752102750249,3.35448843,669.01,668.35,1.52097361]
[1752102750550,3.35448843,669.01,668.36,1.52097361]
[1752102750746,3.35448843,669.01,668.37,1.52097361]
[1752102750947,3.35448843,669.01,668.38,1.52097361]
[1752102751151,3.35448843,669.01,668.39,1.52097361]
[1752102751452,3.35448843,669.0,668.39,1.52097361]
[1752102752552,3.35448843,668.99,668.39,1.52097361]
[1752102754453,3.35448843,668.98,668.39,1.52097361]
[1752102755449,3.35448843,668.98,668.4,1.52097361]
[1752102755748,3.35448843,668.98,668.41,1.52097361]
[1752102755947,3.35448843,668.98,668.42,1.52097361]
[1752102756147,3.35448843,669.0,668.38,1.457]
[1752102756346,3.35448843,669.0,668.39,1.52540109]
[1752102756548,3.35448843,668.99,668.4,1.52540109]
[1752102756748,3.35448843,668.99,668.41,1.52540109]
[1752102757053,3.35448843,669.38,668.42,1.52540109]
[1752102757252,3.35448843,669.38,668.43,1.52540109]
[1752102757452,3.35448843,669.38,668.44,1.52540109]
[1752102757748,3.35448843,669.38,668.45,1.52540109]
[1752102757951,3.35448843,669.38,668.46,1.52540109]
[1752102758148,3.35448843,669.38,668.47,1.52540109]
[1752102758350,3.35448843,669.38,668.48,1.52540109]
[1752102758549,3.35448843,669.37,668.49,1.52540109]
[1752102758754,3.35448843,669.37,668.5,1.52540109]
[1752102758955,3.35448843,669.37,668.38,1.457]
[1752102759156,3.35448843,669.37,668.39,1.52633765]
[1752102759355,3.35448843,669.37,668.4,1.52633765]
[1752102759652,3.35448843,669.36,668.41,1.52633765]
[1752102759951,3.35448843,669.36,668.42,1.52633765]
[1752102760155,3.35448843,669.36,668.43,1.52633765]
[1752102760453,3.35448843,669.36,668.44,1.52633765]
[1752102760657,3.35448843,669.36,668.45,1.52633765]
[1752102760853,3.35448843,669.36,668.46,1.52633765]
[1752102761057,3.35448843,669.36,668.47,1.52633765]
[1752102761257,3.35448843,669.36,668.48,1.52633765]
[1752102761453,3.35448843,669.35,668.49,1.52633765]
[1752102761653,3.35448843,669.35,668.5,1.52633765]
[1752102761857,3.35448843,669.35,668.51,1.52633765]
[1752102762157,3.35448843,669.35,668.38,1.457]
[1752102762354,3.35448843,669.36,668.39,1.52685997]
[1752102762553,3.35448843,669.36,668.4,1.52685997]
[1752102762754,3.35448843,669.36,668.41,1.52685997]
[1752102762957,3.35448843,669.36,668.42,1.52685997]
[1752102763157,3.35448843,669.36,668.43,1.52685997]
[1752102763354,3.35448843,669.36,668.44,1.52685997]
[1752102763657,3.35448843,669.35,668.45,1.52685997]
[1752102763857,3.35448843,669.35,668.46,1.52685997]
[1752102764053,3.35448843,669.35,668.47,1.52685997]
[1752102764354,3.35448843,669.35,668.48,1.52685997]
[1752102764554,3.35448843,669.35,668.49,1.52685997]
[1752102764755,3.35448843,669.34,668.5,1.52685997]
[1752102764953,3.35448843,669.34,668.38,1.457]
[1752102765158,3.35448843,669.34,668.39,1.52703687]
[1752102765353,3.35448843,669.34,668.4,1.52703687]
[1752102765558,3.35448843,669.34,668.41,1.52703687]
[1752102765760,3.35448843,669.34,668.42,1.52703687]
[1752102765954,3.35448843,669.34,668.43,1.52703687]
[1752102766158,3.35448843,669.26,668.44,1.52703687]
[1752102766458,3.35448843,669.26,668.45,1.52703687]
[1752102766656,3.35448843,669.26,668.46,1.52703687]
[1752102766857,3.35448843,669.04,668.47,1.52703687]
[1752102767060,3.35448843,669.0,668.48,1.52703687]
[1752102767258,3.35448843,669.0,668.49,1.52703687]
[1752102767457,3.35448843,669.0,668.5,1.5273497]
[1752102767757,3.35448843,669.0,668.38,1.457]
[1752102767961,3.35448843,669.0,668.39,1.5273497]
[1752102768156,3.35448843,669.0,668.4,1.5273497]
[1752102768357,3.35448843,668.99,668.41,1.5273497]
[1752102768564,3.35448843,668.99,668.38,1.457]
[1752102768565,3.35448843,668.98,668.42,1.5273497]
[1752102768862,3.35448843,668.98,668.43,1.5273497]
[1752102769157,3.35448843,668.95,668.44,1.5273497]
[1752102769461,3.35448843,668.95,668.45,1.5273497]
[1752102769657,3.35448843,668.95,668.46,1.5273497]
[1752102769857,3.35448843,668.95,668.47,1.5273497]
[1752102770062,3.35448843,668.94,668.48,1.5273497]
[1752102770260,3.35448843,668.94,668.49,1.5273497]
[1752102770461,3.35448843,668.96,668.5,1.5273497]
[1752102770662,3.35448843,668.95,668.38,1.457]
[1752102770858,3.35448843,668.95,668.39,1.52742801]
[1752102771060,3.35448843,668.95,668.4,1.52742801]
[1752102771263,3.35448843,668.96,668.41,1.52742801]
[1752102771458,3.35448843,668.96,668.42,1.52742801]
[1752102771662,3.35448843,668.96,668.43,1.52742801]
[1752102771859,3.35448843,668.96,668.44,1.52742801]
[1752102772060,3.35448843,668.96,668.45,1.52742801]
[1752102772258,3.35448843,668.93,668.46,1.52742801]
[1752102772458,3.35448843,668.93,668.47,1.52742801]
[1752102772660,3.35448843,668.93,668.48,1.52742801]
[1752102772860,3.35448843,668.93,668.49,1.52742801]
[1752102773060,3.35448843,668.93,668.5,1.52742801]
[1752102773258,3.35448843,668.93,668.38,1.457]
[1752102773462,3.35448843,668.93,668.39,1.52729708]
[1752102773661,3.35448843,668.93,668.4,1.52729708]
[1752102773861,3.35448843,668.93,668.41,1.52729708]
[1752102774163,3.35448843,668.93,668.42,1.52729708]
[1752102774464,3.35448843,668.94,668.43,1.52729708]
[1752102774662,3.35448843,668.95,668.44,1.52729708]
[1752102774861,3.35448843,668.96,668.45,1.52729708]
[1752102775062,3.35448843,668.96,668.46,1.52729708]
[1752102775265,3.35448843,668.96,668.47,1.52729708]
[1752102775560,3.35448843,668.94,668.48,1.52729708]
[1752102775762,3.35448843,668.94,668.49,1.52729708]
[1752102775965,3.35448843,668.94,668.38,1.457]
[1752102776166,3.35448843,668.94,668.39,1.52725167]
[1752102776467,3.35448843,668.94,668.4,1.52725167]
[1752102776667,3.35448843,668.93,668.41,1.52725167]